[Event "*** Titled Tuesday Blitz"]
[Site "Chess.com"]
[Date "2021.02.02"]
[Round "4"]
[White "TregubovP"]
[Black "floplover"]
[Result "1-0"]
[WhiteElo "2586"]
[BlackElo "2318"]
[TimeControl "180+1"]
[EndTime "10:42:19 PST"]
[Termination "TregubovP won by resignation"]

1. e4 {[%clk 0:03:00.9]} 1... c6 {[%clk 0:03:00]} 2. Nf3 {[%clk 0:03:00]} 2...
d5 {[%clk 0:03:00.9]} 3. Nc3 {[%clk 0:03:00.4]} 3... Nf6 {[%clk 0:03:01]} 4. e5
{[%clk 0:02:59.1]} 4... Ne4 {[%clk 0:03:01.3]} 5. d4 {[%clk 0:02:59]} 5... Nxc3
{[%clk 0:02:59.9]} 6. bxc3 {[%clk 0:02:58.9]} 6... c5 {[%clk 0:03:00.8]} 7. c4
{[%clk 0:02:54.1]} 7... cxd4 {[%clk 0:02:42.9]} 8. cxd5 {[%clk 0:02:45]} 8...
Qxd5 {[%clk 0:02:36.3]} 9. Qxd4 {[%clk 0:02:44.7]} 9... Qxd4 {[%clk 0:02:28.5]}
10. Nxd4 {[%clk 0:02:44.9]} 10... a6 {[%clk 0:02:23.6]} 11. Be2 {[%clk
0:02:38.2]} 11... e6 {[%clk 0:02:23.3]} 12. Rb1 {[%clk 0:02:35.8]} 12... Nd7
{[%clk 0:02:21.6]} 13. f4 {[%clk 0:02:32.3]} 13... Bc5 {[%clk 0:02:20]} 14. Be3
{[%clk 0:02:31.2]} 14... b6 {[%clk 0:02:16.1]} 15. Bf3 {[%clk 0:02:31.2]} 15...
Rb8 {[%clk 0:02:10.1]} 16. Ke2 {[%clk 0:02:27.7]} 16... Bb7 {[%clk 0:02:09]} 17.
Rhd1 {[%clk 0:02:25.7]} 17... Bxf3+ {[%clk 0:01:58.1]} 18. Kxf3 {[%clk
0:02:25.6]} 18... Rb7 {[%clk 0:01:54.5]} 19. Nb3 {[%clk 0:02:12.1]} 19... Bxe3
{[%clk 0:01:52.6]} 20. Kxe3 {[%clk 0:02:11.6]} 20... Ke7 {[%clk 0:01:46.2]} 21.
Rd4 {[%clk 0:01:56.6]} 21... Rc8 {[%clk 0:01:44.9]} 22. Rb2 {[%clk 0:01:43.2]}
22... Rbc7 {[%clk 0:01:43.2]} 23. Kd2 {[%clk 0:01:43.2]} 23... Rc4 {[%clk
0:01:27.5]} 24. g3 {[%clk 0:01:38.7]} 24... h5 {[%clk 0:01:26.3]} 25. Rxc4
{[%clk 0:01:37.3]} 25... Rxc4 {[%clk 0:01:25.6]} 26. Kd3 {[%clk 0:01:36.1]}
26... Rc8 {[%clk 0:01:24.9]} 27. a4 {[%clk 0:01:28.2]} 27... h4 {[%clk
0:01:23.5]} 28. a5 {[%clk 0:01:28]} 28... hxg3 {[%clk 0:01:22.2]} 29. hxg3
{[%clk 0:01:27.7]} 29... b5 {[%clk 0:01:16.9]} 30. Rb1 {[%clk 0:01:27.9]} 30...
Rh8 {[%clk 0:01:16]} 31. Rg1 {[%clk 0:01:25.2]} 31... Rh3 {[%clk 0:01:15.6]} 32.
Kd4 {[%clk 0:01:24.5]} 32... g5 {[%clk 0:01:13.9]} 33. fxg5 {[%clk 0:01:20.9]}
33... Rh5 {[%clk 0:01:12.2]} 34. Nc5 {[%clk 0:01:12.5]} 34... Rxg5 {[%clk
0:01:06.9]} 35. Nxa6 {[%clk 0:01:08.8]} 35... Rxe5 {[%clk 0:01:05.5]} 36. Nb4
{[%clk 0:01:07.8]} 36... Rg5 {[%clk 0:00:53.1]} 37. a6 {[%clk 0:01:07.9]} 37...
Rg4+ {[%clk 0:00:53.3]} 38. Kc3 {[%clk 0:01:07]} 38... Nb6 {[%clk 0:00:51.5]}
39. a7 {[%clk 0:01:01.4]} 39... Rg8 {[%clk 0:00:41.1]} 40. Ra1 {[%clk
0:01:00.4]} 40... Ra8 {[%clk 0:00:40.6]} 41. Kd4 {[%clk 0:00:59.9]} 41... Kd6
{[%clk 0:00:39.4]} 42. Ra6 {[%clk 0:01:00.1]} 42... Kc7 {[%clk 0:00:38.5]} 43.
Kc5 {[%clk 0:01:00.6]} 43... Nc8 {[%clk 0:00:38.1]} 44. Nc6 {[%clk 0:00:55.2]}
44... b4 {[%clk 0:00:35.9]} 45. Kxb4 {[%clk 0:00:53]} 45... Kb7 {[%clk
0:00:36.1]} 46. Ka5 {[%clk 0:00:49.2]} 46... f5 {[%clk 0:00:28]} 47. c4 {[%clk
0:00:46.2]} 47... Nd6 {[%clk 0:00:25.5]} 48. c5 {[%clk 0:00:41.3]} 48... Nc4+
{[%clk 0:00:18.7]} 49. Kb5 {[%clk 0:00:40.7]} 49... e5 {[%clk 0:00:19.2]} 50.
Nb4 {[%clk 0:00:32.5]} 50... Nd2 {[%clk 0:00:16.8]} 51. c6+ {[%clk 0:00:31.9]}
51... Kc8 {[%clk 0:00:16.5]} 52. Nd5 {[%clk 0:00:31.1]} 52... Ne4 {[%clk
0:00:12.4]} 53. Nb6+ {[%clk 0:00:30.5]} 53... Kd8 {[%clk 0:00:12.3]} 54. Nxa8
{[%clk 0:00:30.5]} 1-0

[Event "*** Titled Tuesday Blitz"]
[Site "Chess.com"]
[Date "2021.02.02"]
[Round "4"]
[White "KeithArkell"]
[Black "ViktoriyaTarasova"]
[Result "0-1"]
[WhiteElo "2412"]
[BlackElo "2302"]
[TimeControl "180+1"]
[EndTime "10:42:19 PST"]
[Termination "ViktoriyaTarasova won by resignation"]

1. d4 {[%clk 0:03:00.9]} 1... Nf6 {[%clk 0:02:59.5]} 2. Nf3 {[%clk 0:03:00.5]}
2... e6 {[%clk 0:02:59.5]} 3. c4 {[%clk 0:03:00.5]} 3... b6 {[%clk 0:02:58.9]}
4. g3 {[%clk 0:02:59.9]} 4... Ba6 {[%clk 0:02:58.5]} 5. b3 {[%clk 0:02:59.5]}
5... d5 {[%clk 0:02:58.4]} 6. cxd5 {[%clk 0:02:59.1]} 6... exd5 {[%clk
0:02:58.3]} 7. Bg2 {[%clk 0:02:59.5]} 7... Bb4+ {[%clk 0:02:57.8]} 8. Bd2 {[%clk
0:02:59.9]} 8... Be7 {[%clk 0:02:57.3]} 9. O-O {[%clk 0:02:58.9]} 9... O-O
{[%clk 0:02:57.3]} 10. Bg5 {[%clk 0:02:58.9]} 10... Nbd7 {[%clk 0:02:56.9]} 11.
Nbd2 {[%clk 0:02:58.2]} 11... h6 {[%clk 0:02:54]} 12. Bxf6 {[%clk 0:02:57.2]}
12... Bxf6 {[%clk 0:02:52]} 13. Rc1 {[%clk 0:02:55]} 13... c5 {[%clk 0:02:46.8]}
14. Re1 {[%clk 0:02:55.4]} 14... Rc8 {[%clk 0:02:42.9]} 15. e3 {[%clk
0:02:54.7]} 15... Re8 {[%clk 0:02:42.2]} 16. a3 {[%clk 0:02:39.7]} 16... Qe7
{[%clk 0:02:37.6]} 17. Nb1 {[%clk 0:02:30.6]} 17... Red8 {[%clk 0:02:33.4]} 18.
Nc3 {[%clk 0:02:30.1]} 18... Bb7 {[%clk 0:02:29.3]} 19. dxc5 {[%clk 0:02:27.3]}
19... Nxc5 {[%clk 0:02:26.9]} 20. Nb5 {[%clk 0:02:22.6]} 20... a6 {[%clk
0:02:21.9]} 21. Nbd4 {[%clk 0:02:22.2]} 21... Ne4 {[%clk 0:02:20.3]} 22. Qd3
{[%clk 0:02:22.1]} 22... Qxa3 {[%clk 0:02:15.2]} 23. Qb1 {[%clk 0:01:40]} 23...
Qf8 {[%clk 0:01:55.2]} 24. Qd3 {[%clk 0:01:28.8]} 24... Rxc1 {[%clk 0:01:48]}
25. Rxc1 {[%clk 0:01:28]} 25... Rc8 {[%clk 0:01:48]} 26. Qb1 {[%clk 0:01:22.3]}
26... Rxc1+ {[%clk 0:01:38]} 27. Qxc1 {[%clk 0:01:22]} 27... Qc8 {[%clk
0:01:38.5]} 28. Qb1 {[%clk 0:01:11.7]} 28... g6 {[%clk 0:01:31]} 29. h4 {[%clk
0:01:10.5]} 29... Qc3 {[%clk 0:01:29]} 30. Bf1 {[%clk 0:00:59.6]} 30... Kg7
{[%clk 0:01:05.4]} 31. Kg2 {[%clk 0:00:58.1]} 31... Nd2 {[%clk 0:00:59.9]} 32.
Nxd2 {[%clk 0:00:55.7]} 32... Qxd2 {[%clk 0:00:59.4]} 33. Qa1 {[%clk 0:00:46.4]}
33... a5 {[%clk 0:00:54.8]} 34. Bb5 {[%clk 0:00:42.4]} 34... Qb4 {[%clk
0:00:50.3]} 35. Qa4 {[%clk 0:00:23.3]} 35... Qxa4 {[%clk 0:00:31.5]} 36. bxa4
{[%clk 0:00:24.2]} 36... Kf8 {[%clk 0:00:30.5]} 37. Bc6 {[%clk 0:00:20.5]} 37...
Bxc6 {[%clk 0:00:23.6]} 38. Nxc6 {[%clk 0:00:20.4]} 38... Ke8 {[%clk 0:00:24.1]}
39. Kf3 {[%clk 0:00:20.9]} 39... Kd7 {[%clk 0:00:23.7]} 40. Na7 {[%clk
0:00:20.8]} 40... Kd6 {[%clk 0:00:21.4]} 41. Ke2 {[%clk 0:00:21.2]} 41... Kc5
{[%clk 0:00:21.2]} 42. Kd3 {[%clk 0:00:16.5]} 42... Kb4 {[%clk 0:00:20.9]} 43.
Nc8 {[%clk 0:00:16.5]} 43... Bd8 {[%clk 0:00:20.4]} 44. Kd4 {[%clk 0:00:14.1]}
44... Kxa4 {[%clk 0:00:20.1]} 45. Kxd5 {[%clk 0:00:14.5]} 45... b5 {[%clk
0:00:20.3]} 46. Kd4 {[%clk 0:00:14.3]} 46... b4 {[%clk 0:00:20.4]} 47. Nd6
{[%clk 0:00:13.9]} 47... Bf6+ {[%clk 0:00:18.6]} 48. Kd3 {[%clk 0:00:13.9]}
48... b3 {[%clk 0:00:18.4]} 49. Ne4 {[%clk 0:00:13.6]} 49... Bg7 {[%clk
0:00:16.3]} 50. Kd2 {[%clk 0:00:12.3]} 50... Ka3 {[%clk 0:00:15.6]} 51. Kc1
{[%clk 0:00:12.4]} 51... Ka2 {[%clk 0:00:15.8]} 0-1

[Event "*** Titled Tuesday Blitz"]
[Site "Chess.com"]
[Date "2021.02.02"]
[Round "4"]
[White "Alex_Molchanov"]
[Black "KRSilva"]
[Result "0-1"]
[WhiteElo "2458"]
[BlackElo "2215"]
[TimeControl "180+1"]
[EndTime "10:42:19 PST"]
[Termination "KRSilva won by resignation"]

1. d4 {[%clk 0:03:00.9]} 1... d5 {[%clk 0:02:59.9]} 2. Nf3 {[%clk 0:02:59.5]}
2... Nf6 {[%clk 0:02:59.6]} 3. c4 {[%clk 0:02:56.4]} 3... e6 {[%clk 0:02:59.6]}
4. Nc3 {[%clk 0:02:55.4]} 4... Be7 {[%clk 0:02:59.2]} 5. Bf4 {[%clk 0:02:47.8]}
5... a6 {[%clk 0:02:57.2]} 6. e3 {[%clk 0:02:43]} 6... dxc4 {[%clk 0:02:56.6]}
7. Bxc4 {[%clk 0:02:40.9]} 7... b5 {[%clk 0:02:56.9]} 8. Bd3 {[%clk 0:02:38.3]}
8... Bb7 {[%clk 0:02:56.9]} 9. O-O {[%clk 0:02:36.5]} 9... O-O {[%clk
0:02:57.2]} 10. a3 {[%clk 0:02:25.9]} 10... c5 {[%clk 0:02:55.6]} 11. dxc5
{[%clk 0:02:23.3]} 11... Bxc5 {[%clk 0:02:56.5]} 12. Be2 {[%clk 0:02:19.7]}
12... h6 {[%clk 0:02:52.9]} 13. Qc2 {[%clk 0:02:17.6]} 13... Nbd7 {[%clk
0:02:45.3]} 14. Rad1 {[%clk 0:02:16.1]} 14... Rc8 {[%clk 0:02:40.2]} 15. Ne5
{[%clk 0:02:08.5]} 15... Qe8 {[%clk 0:02:30.4]} 16. Nxd7 {[%clk 0:01:58.8]}
16... Nxd7 {[%clk 0:02:29.8]} 17. Qb1 {[%clk 0:01:58.9]} 17... Nf6 {[%clk
0:02:17.2]} 18. Be5 {[%clk 0:01:52.7]} 18... Nd5 {[%clk 0:02:12]} 19. Nxd5
{[%clk 0:01:49.2]} 19... Bxd5 {[%clk 0:02:12.9]} 20. Bd3 {[%clk 0:01:45.8]}
20... Qe7 {[%clk 0:02:08.9]} 21. Be4 {[%clk 0:01:42.3]} 21... Bb3 {[%clk
0:01:34.4]} 22. Rd2 {[%clk 0:01:32.7]} 22... Qg5 {[%clk 0:01:32.8]} 23. Bf4
{[%clk 0:01:28.1]} 23... Qe7 {[%clk 0:01:31.6]} 24. Rc1 {[%clk 0:01:19.1]} 24...
Rfd8 {[%clk 0:01:28.5]} 25. Rxd8+ {[%clk 0:01:12.5]} 25... Rxd8 {[%clk
0:01:22.7]} 26. Bf3 {[%clk 0:01:05.1]} 26... Bb6 {[%clk 0:00:56.9]} 27. Qe4
{[%clk 0:00:58.2]} 27... Bd5 {[%clk 0:00:48.9]} 28. Qc2 {[%clk 0:00:54.5]} 28...
Bc4 {[%clk 0:00:34.5]} 29. Be2 {[%clk 0:00:36.1]} 29... Bd5 {[%clk 0:00:30.6]}
30. Bd3 {[%clk 0:00:26.3]} 30... e5 {[%clk 0:00:29.1]} 31. Bg3 {[%clk
0:00:24.8]} 31... e4 {[%clk 0:00:19.1]} 32. Be2 {[%clk 0:00:24.6]} 32... Qe6
{[%clk 0:00:17.7]} 33. h3 {[%clk 0:00:19.6]} 33... f5 {[%clk 0:00:17.6]} 34. Bd1
{[%clk 0:00:15.4]} 34... Qg6 {[%clk 0:00:16.8]} 35. Qe2 {[%clk 0:00:13.3]} 35...
Bc4 {[%clk 0:00:15.1]} 36. Qh5 {[%clk 0:00:13.3]} 36... Qf6 {[%clk 0:00:14.6]}
37. Bh4 {[%clk 0:00:12.9]} 37... g5 {[%clk 0:00:14.2]} 38. Bg3 {[%clk
0:00:09.7]} 38... f4 {[%clk 0:00:14.1]} 39. exf4 {[%clk 0:00:08.9]} 39... gxf4
{[%clk 0:00:14.7]} 40. Bh4 {[%clk 0:00:09.3]} 40... Qd6 {[%clk 0:00:12.9]} 41.
Bxd8 {[%clk 0:00:08.6]} 41... Qxd8 {[%clk 0:00:13.7]} 42. Qg6+ {[%clk
0:00:08.6]} 42... Kf8 {[%clk 0:00:12.1]} 43. Bh5 {[%clk 0:00:08.1]} 43... e3
{[%clk 0:00:11.3]} 44. Qf7+ {[%clk 0:00:07.7]} 44... Bxf7 {[%clk 0:00:11.1]} 0-1

[Event "*** Titled Tuesday Blitz"]
[Site "Chess.com"]
[Date "2021.02.02"]
[Round "4"]
[White "Eloist"]
[Black "Mops_2004"]
[Result "1-0"]
[WhiteElo "2358"]
[BlackElo "2519"]
[TimeControl "180+1"]
[EndTime "10:42:24 PST"]
[Termination "Eloist won by resignation"]

1. e4 {[%clk 0:03:00.9]} 1... d6 {[%clk 0:03:00.1]} 2. d4 {[%clk 0:03:00.4]}
2... Nf6 {[%clk 0:03:00.5]} 3. Nc3 {[%clk 0:03:00.4]} 3... g6 {[%clk 0:03:01]}
4. Nf3 {[%clk 0:02:59.8]} 4... Bg7 {[%clk 0:03:01.2]} 5. Be2 {[%clk 0:03:00.2]}
5... O-O {[%clk 0:03:01.4]} 6. O-O {[%clk 0:03:00.6]} 6... c6 {[%clk 0:03:01.8]}
7. a4 {[%clk 0:03:00]} 7... Qc7 {[%clk 0:03:00.7]} 8. a5 {[%clk 0:02:59.9]} 8...
Nbd7 {[%clk 0:03:00]} 9. Be3 {[%clk 0:02:55.5]} 9... Rb8 {[%clk 0:02:57.3]} 10.
h3 {[%clk 0:02:51.6]} 10... b5 {[%clk 0:02:55.2]} 11. axb6 {[%clk 0:02:51.3]}
11... axb6 {[%clk 0:02:56.1]} 12. d5 {[%clk 0:02:50.3]} 12... Bb7 {[%clk
0:02:49.1]} 13. Nd4 {[%clk 0:02:42.4]} 13... cxd5 {[%clk 0:02:22.4]} 14. Ndb5
{[%clk 0:02:41.7]} 14... Qc8 {[%clk 0:01:50]} 15. exd5 {[%clk 0:02:41]} 15...
Nc5 {[%clk 0:01:47]} 16. Bf3 {[%clk 0:02:36.2]} 16... Ra8 {[%clk 0:01:38.5]} 17.
Qd2 {[%clk 0:02:12.7]} 17... Qf5 {[%clk 0:01:30.8]} 18. Rxa8 {[%clk 0:01:47]}
18... Rxa8 {[%clk 0:01:29]} 19. b4 {[%clk 0:01:38.5]} 19... Nfe4 {[%clk
0:01:17.4]} 20. Nxe4 {[%clk 0:01:32.5]} 20... Nxe4 {[%clk 0:01:18.3]} 21. Qd3
{[%clk 0:01:24.2]} 21... Nc3 {[%clk 0:01:10]} 22. Qxf5 {[%clk 0:01:14.1]} 22...
gxf5 {[%clk 0:01:10.9]} 23. Nxc3 {[%clk 0:00:54.3]} 23... Bxc3 {[%clk
0:01:11.8]} 24. Bxb6 {[%clk 0:00:43.3]} 24... Bxb4 {[%clk 0:01:11.5]} 25. Rb1
{[%clk 0:00:41.6]} 25... Bc3 {[%clk 0:01:05.9]} 26. Be3 {[%clk 0:00:36.6]} 26...
Ba6 {[%clk 0:01:00.9]} 27. Rb3 {[%clk 0:00:34.5]} 27... Be5 {[%clk 0:00:56.2]}
28. Ra3 {[%clk 0:00:31.2]} 28... Bb7 {[%clk 0:00:51.8]} 29. Rxa8+ {[%clk
0:00:22.5]} 29... Bxa8 {[%clk 0:00:52.7]} 30. c4 {[%clk 0:00:19.8]} 30... Kf8
{[%clk 0:00:47.9]} 31. Kf1 {[%clk 0:00:19.7]} 31... Ke8 {[%clk 0:00:45.9]} 32.
Ke2 {[%clk 0:00:18.2]} 32... Bb7 {[%clk 0:00:45.5]} 33. Kd3 {[%clk 0:00:18.1]}
33... Bc8 {[%clk 0:00:43.1]} 34. Bd1 {[%clk 0:00:16.8]} 34... f4 {[%clk
0:00:34.7]} 35. Bd4 {[%clk 0:00:14.9]} 35... Bf5+ {[%clk 0:00:34.5]} 36. Kc3
{[%clk 0:00:14.9]} 36... f6 {[%clk 0:00:26]} 37. Bg4 {[%clk 0:00:10.4]} 37...
Bxg4 {[%clk 0:00:17.7]} 38. hxg4 {[%clk 0:00:09.8]} 38... f5 {[%clk 0:00:16.3]}
39. Bxe5 {[%clk 0:00:07]} 39... dxe5 {[%clk 0:00:15.5]} 40. gxf5 {[%clk
0:00:06.9]} 40... f3 {[%clk 0:00:14.9]} 41. g4 {[%clk 0:00:04]} 41... Kd7 {[%clk
0:00:13.6]} 42. c5 {[%clk 0:00:03.7]} 42... h6 {[%clk 0:00:13.6]} 43. Kd3 {[%clk
0:00:02.9]} 1-0

[Event "*** Titled Tuesday Blitz"]
[Site "Chess.com"]
[Date "2021.02.02"]
[Round "4"]
[White "Trickov"]
[Black "klimkoj"]
[Result "1-0"]
[WhiteElo "2402"]
[BlackElo "2554"]
[TimeControl "180+1"]
[EndTime "10:42:26 PST"]
[Termination "Trickov won on time"]

1. d4 {[%clk 0:03:00.9]} 1... Nf6 {[%clk 0:02:59.7]} 2. Nf3 {[%clk 0:02:57.7]}
2... e6 {[%clk 0:02:59.5]} 3. g3 {[%clk 0:02:55.9]} 3... b6 {[%clk 0:02:57.3]}
4. Bg2 {[%clk 0:02:55.4]} 4... Bb7 {[%clk 0:02:57.9]} 5. O-O {[%clk 0:02:54.4]}
5... Be7 {[%clk 0:02:58.3]} 6. c4 {[%clk 0:02:54.4]} 6... O-O {[%clk 0:02:58.6]}
7. Nc3 {[%clk 0:02:53.2]} 7... Ne4 {[%clk 0:02:59.1]} 8. d5 {[%clk 0:02:53.2]}
8... Nxc3 {[%clk 0:02:48.1]} 9. bxc3 {[%clk 0:02:52.8]} 9... exd5 {[%clk
0:02:42.6]} 10. cxd5 {[%clk 0:02:51.9]} 10... d6 {[%clk 0:02:42.8]} 11. Nd4
{[%clk 0:02:50.9]} 11... Nd7 {[%clk 0:02:42.1]} 12. Nc6 {[%clk 0:02:47.4]} 12...
Bxc6 {[%clk 0:02:40]} 13. dxc6 {[%clk 0:02:46.9]} 13... Nc5 {[%clk 0:02:39.8]}
14. Be3 {[%clk 0:02:45.6]} 14... Bf6 {[%clk 0:02:38.2]} 15. Bd4 {[%clk
0:02:44.4]} 15... Qe7 {[%clk 0:02:32.8]} 16. Qc2 {[%clk 0:02:32.6]} 16... Rfe8
{[%clk 0:02:22.6]} 17. e3 {[%clk 0:02:31]} 17... a5 {[%clk 0:02:18.1]} 18. Rfd1
{[%clk 0:02:29.3]} 18... Qe6 {[%clk 0:02:05.5]} 19. Bxc5 {[%clk 0:02:12.7]}
19... bxc5 {[%clk 0:02:00.3]} 20. Rab1 {[%clk 0:01:58.1]} 20... Qe5 {[%clk
0:01:47.2]} 21. Rb7 {[%clk 0:01:56]} 21... Re7 {[%clk 0:01:43.4]} 22. c4 {[%clk
0:01:51.4]} 22... Qe6 {[%clk 0:00:59.6]} 23. Rdb1 {[%clk 0:01:48]} 23... g6
{[%clk 0:00:57.5]} 24. Bd5 {[%clk 0:01:41.7]} 24... Qc8 {[%clk 0:00:47.4]} 25.
Qb3 {[%clk 0:01:32.1]} 25... Re8 {[%clk 0:00:41.8]} 26. Qa4 {[%clk 0:01:27.4]}
26... Kg7 {[%clk 0:00:37.4]} 27. R1b5 {[%clk 0:01:20.9]} 27... Bc3 {[%clk
0:00:33]} 28. Qb3 {[%clk 0:01:13.1]} 28... Bf6 {[%clk 0:00:29.7]} 29. Qa3 {[%clk
0:01:10.7]} 29... a4 {[%clk 0:00:28.3]} 30. Qc1 {[%clk 0:01:00.9]} 30... a3
{[%clk 0:00:24.5]} 31. Qc2 {[%clk 0:00:57.2]} 31... Re7 {[%clk 0:00:20.6]} 32.
Qb3 {[%clk 0:00:55.1]} 32... Bb2 {[%clk 0:00:20.4]} 33. Rb8 {[%clk 0:00:53.6]}
33... Rxb8 {[%clk 0:00:20.9]} 34. Rxb8 {[%clk 0:00:53.1]} 34... Qf5 {[%clk
0:00:21.8]} 35. Kg2 {[%clk 0:00:41.8]} 35... Qe5 {[%clk 0:00:18.3]} 36. Rc8
{[%clk 0:00:36.5]} 36... Bc1 {[%clk 0:00:10.6]} 37. Rd8 {[%clk 0:00:25.1]} 37...
Qb2 {[%clk 0:00:09.4]} 38. Rb8 {[%clk 0:00:22.6]} 38... Qxb3 {[%clk 0:00:04.6]}
39. Rxb3 {[%clk 0:00:21.7]} 39... Bb2 {[%clk 0:00:05]} 40. Rb8 {[%clk
0:00:20.4]} 40... h6 {[%clk 0:00:03.6]} 41. Rd8 {[%clk 0:00:20.3]} 41... Kf6
{[%clk 0:00:02.3]} 42. Rc8 {[%clk 0:00:19]} 42... Kg7 {[%clk 0:00:02.4]} 43. Rb8
{[%clk 0:00:18.4]} 43... Kf6 {[%clk 0:00:02.7]} 44. h4 {[%clk 0:00:18.6]} 44...
Kg7 {[%clk 0:00:02.7]} 45. Rb7 {[%clk 0:00:18.4]} 45... Kf8 {[%clk 0:00:02.2]}
46. Kf3 {[%clk 0:00:18.4]} 46... h5 {[%clk 0:00:01.1]} 47. Kf4 {[%clk
0:00:17.6]} 47... Be5+ {[%clk 0:00:01.1]} 48. Kf3 {[%clk 0:00:17.7]} 1-0

[Event "*** Titled Tuesday Blitz"]
[Site "Chess.com"]
[Date "2021.02.02"]
[Round "4"]
[White "kasparicy"]
[Black "Legendinunknown"]
[Result "0-1"]
[WhiteElo "2332"]
[BlackElo "2590"]
[TimeControl "180+1"]
[EndTime "10:42:32 PST"]
[Termination "Legendinunknown won by resignation"]

1. e4 {[%clk 0:03:00.9]} 1... e5 {[%clk 0:02:57]} 2. Nf3 {[%clk 0:03:00.5]} 2...
Nc6 {[%clk 0:02:52.8]} 3. Bc4 {[%clk 0:03:00.9]} 3... Nf6 {[%clk 0:02:48.8]} 4.
d3 {[%clk 0:03:00.2]} 4... Be7 {[%clk 0:02:48.1]} 5. c3 {[%clk 0:03:00]} 5...
O-O {[%clk 0:02:45.7]} 6. Bb3 {[%clk 0:03:00.5]} 6... d6 {[%clk 0:02:45.2]} 7.
Nbd2 {[%clk 0:03:01]} 7... Kh8 {[%clk 0:02:40.7]} 8. O-O {[%clk 0:02:59.5]} 8...
Ng8 {[%clk 0:02:39.4]} 9. d4 {[%clk 0:02:53.4]} 9... f5 {[%clk 0:02:37.1]} 10.
exf5 {[%clk 0:02:53.2]} 10... Bxf5 {[%clk 0:02:35.8]} 11. dxe5 {[%clk
0:02:53.4]} 11... dxe5 {[%clk 0:02:35.7]} 12. Re1 {[%clk 0:02:51.4]} 12... Bd6
{[%clk 0:02:31]} 13. Nf1 {[%clk 0:02:43.4]} 13... e4 {[%clk 0:02:20.9]} 14. Bg5
{[%clk 0:02:31]} 14... Qd7 {[%clk 0:02:12.3]} 15. Nh4 {[%clk 0:02:27.9]} 15...
Ne5 {[%clk 0:01:45]} 16. Nxf5 {[%clk 0:02:10]} 16... Qxf5 {[%clk 0:01:42.1]} 17.
Be3 {[%clk 0:02:10.4]} 17... Ng4 {[%clk 0:01:40]} 18. Qe2 {[%clk 0:00:52.6]}
18... Nxe3 {[%clk 0:01:03.8]} 19. Nxe3 {[%clk 0:00:53.5]} 19... Qf4 {[%clk
0:01:02.6]} 20. g3 {[%clk 0:00:20.3]} 20... Qg5 {[%clk 0:00:58.1]} 21. Bd5
{[%clk 0:00:17]} 21... Rae8 {[%clk 0:00:54.6]} 22. Qg4 {[%clk 0:00:17.5]} 22...
Qh6 {[%clk 0:00:36.8]} 23. Bxb7 {[%clk 0:00:17.3]} 23... Nf6 {[%clk 0:00:34]}
24. Qh4 {[%clk 0:00:16.9]} 24... Qxh4 {[%clk 0:00:29.3]} 25. gxh4 {[%clk
0:00:17.8]} 25... Rb8 {[%clk 0:00:22.7]} 26. Bc6 {[%clk 0:00:15.7]} 26... Rxb2
{[%clk 0:00:20.9]} 27. Reb1 {[%clk 0:00:13.3]} 27... Rxb1+ {[%clk 0:00:17.5]}
28. Rxb1 {[%clk 0:00:14.2]} 28... g6 {[%clk 0:00:16.4]} 29. Rb7 {[%clk 0:00:14]}
29... Kg7 {[%clk 0:00:16.4]} 30. Rxa7 {[%clk 0:00:14]} 30... Kh6 {[%clk
0:00:15.6]} 31. Nd5 {[%clk 0:00:14.1]} 31... Nxd5 {[%clk 0:00:15.1]} 32. Bxd5
{[%clk 0:00:15]} 32... Rf4 {[%clk 0:00:14.6]} 33. Ra4 {[%clk 0:00:14.4]} 33...
Rg4+ {[%clk 0:00:14]} 34. Kf1 {[%clk 0:00:14.2]} 34... Rxh4 {[%clk 0:00:14]} 35.
Rxe4 {[%clk 0:00:13.8]} 35... Rxh2 {[%clk 0:00:14]} 36. Ke2 {[%clk 0:00:14]}
36... Bg3 {[%clk 0:00:11.6]} 37. Re7 {[%clk 0:00:11.3]} 37... Rxf2+ {[%clk
0:00:11.2]} 38. Kd3 {[%clk 0:00:11.8]} 38... Bf4 {[%clk 0:00:09.9]} 39. Bg8
{[%clk 0:00:12]} 39... Rd2+ {[%clk 0:00:10]} 40. Kc4 {[%clk 0:00:12.5]} 40...
Rxa2 {[%clk 0:00:09.5]} 41. Rxh7+ {[%clk 0:00:12.9]} 41... Kg5 {[%clk
0:00:09.6]} 42. Bf7 {[%clk 0:00:13.2]} 42... Ra6 {[%clk 0:00:09.1]} 43. Be8
{[%clk 0:00:12.7]} 43... Rf6 {[%clk 0:00:08.4]} 44. Kb5 {[%clk 0:00:12.4]} 44...
Bd6 {[%clk 0:00:08.5]} 45. c4 {[%clk 0:00:12.7]} 45... Kf4 {[%clk 0:00:07]} 46.
Rg7 {[%clk 0:00:12.1]} 46... g5 {[%clk 0:00:06.9]} 47. Bd7 {[%clk 0:00:11.8]}
47... Be5 {[%clk 0:00:03.1]} 48. c5 {[%clk 0:00:11.7]} 48... Rf8 {[%clk
0:00:03.4]} 49. c6 {[%clk 0:00:11.2]} 49... Bxg7 {[%clk 0:00:03.3]} 0-1